fUST/lending_fUST_20260524
["ID","MTS","AMOUNT","RATE_DAILY","PERIOD"]
[422916475,1779621787000,-195.27649456,0.00013227,7]
[422916473,1779621787000,-153.72839336,0.00013227,7]
[422916479,1779621787000,-152.0,0.00013292,7]
[422916474,1779621787000,-170.87143396,0.00013227,7]
[422916482,1779621788000,-27.46107741,0.00013326,2]
[422916483,1779621788000,-300.0,0.00013491,2]
[422916484,1779621788000,-300.0,0.00013491,2]
[422916485,1779621788000,-300.0,0.00013491,2]
[422916481,1779621788000,-156.02933419,8.574e-05,7]
[422916487,1779621788000,-300.0,0.00013491,2]
[422916488,1779621788000,-300.0,0.00013491,2]
[422916492,1779621788000,-300.0,0.00013491,2]
[422916491,1779621788000,-300.0,0.00013491,2]
[422916486,1779621788000,-300.0,0.00013491,2]
[422916490,1779621788000,-300.0,0.00013491,2]
[422916489,1779621788000,-300.0,0.00013491,2]
[422916498,1779621789000,-201.39613368,0.00014,2]
[422916499,1779621789000,-115.11345472,0.00014499,2]
[422916497,1779621789000,-300.0,0.00013491,2]
[422916495,1779621789000,-300.0,0.00013491,2]
[422916494,1779621789000,-300.0,0.00013491,2]
[422916493,1779621789000,-300.0,0.00013491,2]
[422916496,1779621789000,-300.0,0.00013491,2]
[422916502,1779621796000,-334.0,0.000145,2]
[422916503,1779621796000,-300.0,0.000145,2]
[422916501,1779621796000,-420.0,0.000145,2]
[422916500,1779621796000,-304.88654528,0.00014499,2]
[422916504,1779621804000,-5000.0,0.00013894,2]
[422916505,1779621805000,-2001.2456375,0.00013894,2]
[422916506,1779621805000,-2998.7543625,0.000145,2]
[422916507,1779621810000,-2001.2456375,0.000145,2]
[422916509,1779621835000,-4000.0,0.00014379,2]
[422916508,1779621835000,-1000.0,0.00013952,2]
[422916510,1779621838000,-1000.0,0.00014379,2]
[422916511,1779621883000,-5000.0,0.00014379,2]
[422916512,1779621900000,-5000.0,0.00014379,2]
[422916513,1779621910000,-210.63907359,0.00014451,2]
[422916514,1779621911000,4789.36092641,0.00014307,2]
[422916515,1779621918000,-210.63907359,0.00014307,2]
[422916516,1779622103000,-152.0,0.00013292,7]
[422916518,1779622131000,-5000.0,0.00014385,2]
[422916520,1779622162000,-5000.0,0.00014385,2]
[422916521,1779622172000,-300.0,0.00014385,2]
[422916522,1779622181000,-3400.0,0.00014385,2]
[422916568,1779622232000,-1204.23062129,0.00014385,2]
[422916627,1779622238000,-595.30968266,0.00015099,2]
[422916607,1779622238000,-500.0,0.00015098,2]
[422916619,1779622238000,-189.14349823,0.00015099,2]
[422916609,1779622238000,-500.0,0.00015098,2]
[422916621,1779622238000,-595.30968266,0.00015099,2]
[422916625,1779622238000,-595.30968266,0.00015099,2]
[422916629,1779622238000,-595.30968266,0.00015099,2]
[422916623,1779622238000,-595.30968266,0.00015099,2]
[422916631,1779622238000,-595.30968266,0.00015099,2]
[422916643,1779622238000,-595.30968266,0.00015099,2]
[422916639,1779622238000,-595.30968266,0.00015099,2]
[422916635,1779622238000,-595.30968266,0.00015099,2]
[422916637,1779622238000,-595.30968266,0.00015099,2]
[422916641,1779622238000,-595.30968266,0.00015099,2]
[422916633,1779622238000,-595.30968266,0.00015099,2]
[422916611,1779622238000,-500.0,0.00015098,2]
[422916648,1779622238000,-595.30968266,0.00015099,2]
[422916605,1779622238000,-1200.0,0.00015098,2]
[422916584,1779622238000,-95.76937871,0.00014385,2]
[422916595,1779622238000,-179.737364,0.00015068,2]
[422916594,1779622238000,-176.29999686,0.00015,2]
[422916585,1779622238000,-210.79376987,0.00014458,2]
[422916586,1779622238000,-177.8064,0.00014529,2]
[422916587,1779622238000,-3457.50513587,0.0001453,2]
[422916597,1779622238000,-331.44169148,0.00015095,2]
[422916589,1779622238000,-456.6813334,0.00014829,2]
[422916588,1779622238000,-248.5525355,0.00014826,2]
[422916592,1779622238000,-178.26386566,0.00015,2]
[422916599,1779622238000,-334.0,0.00015098,2]
[422916602,1779622238000,-198.0,0.00015098,2]
[422916604,1779622238000,-300.0,0.00015098,2]
[422916615,1779622238000,-598.00754156,0.00015098,2]
[422916617,1779622238000,-560.53787013,0.00015098,2]
[422916613,1779622238000,-500.0,0.00015098,2]
[422916645,1779622238000,-595.30968266,0.00015099,2]
[422916715,1779622238000,-178.26386566,0.000153,2]
[422916649,1779622238000,-595.30968266,0.00015099,2]
[422916683,1779622238000,-706.18,0.00015225,2]
[422916681,1779622238000,-1412.35,0.00015225,2]
[422916687,1779622238000,-740.73511112,0.00015225,2]
[422916685,1779622238000,-185.36914693,0.00015225,2]
[422916691,1779622238000,-1727.05365467,0.00015225,2]
[422916701,1779622238000,-705.78615457,0.000153,3]
[422916689,1779622238000,-432.19560928,0.00015225,2]
[422916721,1779622238000,-151.0,0.000153,2]
[422916719,1779622238000,-151.0,0.000153,2]
[422916727,1779622238000,-151.0,0.00015375,2]
[422916713,1779622238000,-41940.82005708,0.000153,3]
[422916723,1779622238000,-331.44169148,0.00015341,2]
[422916725,1779622238000,-151.0,0.00015375,2]
[422916729,1779622238000,-727.944816,0.00015375,2]
[422916647,1779622238000,-595.30968266,0.00015099,2]
[422916699,1779622238000,-12309.54233255,0.000153,3]
[422916697,1779622238000,-184.933575,0.00015275,2]
[422916717,1779622238000,-151.155601,0.000153,2]
[422916693,1779622238000,-151.0,0.00015275,2]
[422916695,1779622238000,-151.469038,0.00015275,2]
[422916651,1779622238000,-619.18870912,0.00015099,2]
[422916653,1779622238000,-619.18870912,0.00015099,2]
[422916657,1779622238000,-619.18870912,0.00015099,2]
[422916667,1779622238000,-500.0,0.00015167,5]
[422916665,1779622238000,-115417.28322529,0.000151,2]
[422916671,1779622238000,-578.77330259,0.00015197,2]
[422916659,1779622238000,-619.18870912,0.00015099,2]
[422916655,1779622238000,-619.18870912,0.00015099,2]
[422916661,1779622238000,-619.18870912,0.00015099,2]
[422916669,1779622238000,-202.852962,0.00015196,2]
[422916673,1779622238000,-161.73758927,0.00015199,2]
[422916663,1779622238000,-66202.65669582,0.000151,2]
[422916675,1779622238000,-178.26386566,0.000152,2]
[422916677,1779622238000,-151.0,0.000152,2]
[422916679,1779622238000,-331.44169148,0.00015218,2]
[422916749,1779622239000,-300.0,0.00015401,2]
[422916756,1779622239000,-300.0,0.00015401,2]
[422916755,1779622239000,-300.0,0.00015401,2]
[422916753,1779622239000,-300.0,0.00015401,2]
[422916761,1779622239000,-300.0,0.00015401,2]
[422916751,1779622239000,-300.0,0.00015401,2]
[422916769,1779622239000,-4407.0,0.00015476,2]
[422916746,1779622239000,-300.0,0.00015401,2]
[422916736,1779622239000,-151.0,0.00015375,2]
[422916742,1779622239000,-300.0,0.00015401,2]
[422916734,1779622239000,-727.944816,0.00015375,2]
[422916731,1779622239000,-727.944816,0.00015375,2]
[422916744,1779622239000,-300.0,0.00015401,2]
[422916733,1779622239000,-727.944816,0.00015375,2]
[422916740,1779622239000,-300.0,0.00015401,2]
[422916738,1779622239000,-300.0,0.00015401,2]
[422916759,1779622239000,-300.0,0.00015401,2]
[422916748,1779622239000,-300.0,0.00015401,2]
[422916763,1779622239000,-300.0,0.00015401,2]
[422916765,1779622239000,-300.0,0.00015401,2]
[422916771,1779622239000,-169.0,0.00015476,2]
[422916767,1779622239000,-331.44169148,0.00015464,2]
[422916809,1779622239000,-2538.77102116,0.00015687,2]
[422916806,1779622239000,-1043.45513545,0.00015687,2]
[422916801,1779622239000,-171.156166,0.00015646,2]
[422916799,1779622239000,-468.39898547,0.000156,2]
[422916797,1779622239000,-331.44169148,0.00015587,2]
[422916793,1779622239000,-600.0,0.00015578,2]
[422916795,1779622239000,-774.89712747,0.00015587,2]
[422916785,1779622239000,-727.944816,0.00015487,2]
[422916804,1779622239000,-151.0,0.00015652,2]
[422916789,1779622239000,-151.13,0.000155,2]
[422916791,1779622239000,-178.26386566,0.000155,2]
[422916787,1779622239000,-151.0,0.00015487,2]
[422916783,1779622239000,-727.944816,0.00015487,2]
[422916778,1779622239000,-349.29482834,0.00015487,2]
[422916803,1779622239000,-151.6009284,0.00015648,2]
[422916773,1779622239000,-152.630815,0.00015487,2]
[422916776,1779622239000,-727.944816,0.00015487,2]
[422916774,1779622239000,-151.0,0.00015487,2]
[422916781,1779622239000,-378.64998766,0.00015487,2]
[422917195,1779622242000,-345.85212238,0.00015687,2]
[422917194,1779622242000,-151.0,0.000153,2]
[422917351,1779622244000,-40536.62759402,0.00015687,2]
[422917353,1779622244000,-37611.15468993,0.00015687,2]
[422917342,1779622244000,-88742.42938235,0.00015687,2]
[422917364,1779622244000,-1107.9990059,0.00015687,2]
[422917355,1779622244000,-2702.50000204,0.00015687,2]
[422917361,1779622244000,-1232.83171686,0.00015687,2]
[422917345,1779622244000,-386.56,0.00015687,2]
[422917795,1779622247000,-28253.46091168,0.00015687,2]
[422917953,1779623206000,-5000.0,0.00010109,2]
[422917954,1779623206000,-151.0,0.00010211,2]
[422917955,1779623206000,-230.42138119,0.00010269,2]
[422917957,1779623206000,-161.63611228,0.00010327,7]
[422917958,1779623206000,-185.03027527,0.00010327,7]
[422917959,1779623206000,-203.40478979,0.00010327,7]
[422917960,1779623206000,-3554.85339832,0.00010366,2]
[422917961,1779623206000,-339.69545418,0.0001047,2]
[422917956,1779623206000,-173.95858897,0.00010327,7]
[422917963,1779623214000,-300.0,0.0001047,2]
[422917962,1779623214000,-860.30454582,0.0001047,2]
[422917966,1779623214000,-215.10758061,0.00010627,7]
[422917964,1779623214000,-152.0,0.00010527,7]
[422917968,1779623214000,-166.03533832,0.00010627,7]
[422917967,1779623214000,-161.542089,0.00010627,7]
[422917969,1779623214000,-182.30469641,0.00010627,7]
[422917965,1779623214000,-168.07289182,0.00010627,7]
[422917970,1779623223000,-5000.0,0.00011397,2]
[422917971,1779623223000,-160.0,0.00011517,2]
[422917972,1779623233000,-271.8972298,0.00012269,2]
[422917973,1779623233000,-250.20773296,0.00012882,2]
[422917974,1779623233000,-748.6085693,0.00013021,2]
[422917977,1779623233000,-169.9862691,0.00013699,7]
[422917975,1779623233000,-167.57,0.00013293,2]
[422917978,1779623233000,-202.852962,0.00013905,2]
[422917976,1779623233000,-1000.0,0.00013699,2]
[422917981,1779623238000,-16.61071456,0.00015068,2]
[422917979,1779623238000,-313.37307842,0.00014269,2]
[422917980,1779623238000,-161.73758927,0.00014689,2]
[422917982,1779623249000,-287.63458838,0.00014918,2]
[422918084,1779623438000,-363.61533811,0.0001426,2]
[422918268,1779623442000,-4142.19890691,0.0001426,2]
[422918269,1779623442000,-1000.0,0.00014404,2]
[422918270,1779623442000,-300.0,0.00014917,2]
[422918271,1779623442000,-241.649002,0.00015068,2]
[422918266,1779623442000,-152.0,9.495e-05,7]
[422918272,1779623442000,-153.60284296,0.00015199,2]
[422918273,1779623442000,-13.0638237,0.00015199,2]
[422918276,1779623442000,-383.16017438,0.00015401,2]
[422918275,1779623442000,-176.29999685,0.00015399,2]
[422918274,1779623442000,-600.0,0.00015299,2]
[422918267,1779623442000,-494.18575498,0.0001426,2]
[422918312,1779623444000,-500.0,0.00015486,2]
[422918313,1779623444000,-500.0,0.00015486,2]
[422918300,1779623444000,-500.0,0.00015486,2]
[422918301,1779623444000,-500.0,0.00015486,2]
[422918311,1779623444000,-500.0,0.00015486,2]
[422918293,1779623444000,-500.0,0.00015486,2]
[422918295,1779623444000,-500.0,0.00015486,2]
[422918294,1779623444000,-396.65892737,0.00015486,2]
[422918299,1779623444000,-500.0,0.00015486,2]
[422918292,1779623444000,-500.0,0.00015486,2]
[422918287,1779623444000,-173.39309668,0.00015485,2]
[422918290,1779623444000,-500.0,0.00015486,2]
[422918303,1779623444000,-500.0,0.00015486,2]
[422918291,1779623444000,-500.0,0.00015486,2]
[422918289,1779623444000,-500.0,0.00015486,2]
[422918298,1779623444000,-500.0,0.00015486,2]
[422918288,1779623444000,-500.0,0.00015485,2]
[422918286,1779623444000,-155.0,0.00015476,2]
[422918284,1779623444000,-161.73758927,0.00014917,2]
[422918285,1779623444000,-137.65214802,0.00015401,2]
[422918297,1779623444000,-500.0,0.00015486,2]
[422918306,1779623444000,-500.0,0.00015486,2]
[422918296,1779623444000,-500.0,0.00015486,2]
[422918304,1779623444000,-500.0,0.00015486,2]
[422918328,1779623444000,-535.1986977,0.00015652,2]
[422918325,1779623444000,-166.377,0.00015567,2]
[422918327,1779623444000,-279.66719737,0.000156,2]
[422918329,1779623444000,-5529283.51153777,0.00015687,2]
[422918323,1779623444000,-211.90633021,0.000155,17]
[422918322,1779623444000,-205.90100551,0.000155,17]
[422918320,1779623444000,-169.33986541,0.000155,17]
[422918321,1779623444000,-199.26775989,0.000155,17]
[422918316,1779623444000,-500.0,0.00015486,2]
[422918324,1779623444000,-500.0,0.0001551,5]
[422918318,1779623444000,-184590.54228525,0.00015487,2]
[422918319,1779623444000,-3436.902145,0.00015487,2]
[422918326,1779623444000,-480.70566396,0.000156,2]
[422918317,1779623444000,-400.0,0.00015486,2]
[422918314,1779623444000,-500.0,0.00015486,2]
[422918309,1779623444000,-500.0,0.00015486,2]
[422918310,1779623444000,-500.0,0.00015486,2]
[422918308,1779623444000,-500.0,0.00015486,2]
[422918302,1779623444000,-500.0,0.00015486,2]
[422918307,1779623444000,-500.0,0.00015486,2]
[422918315,1779623444000,-500.0,0.00015486,2]
[422918305,1779623444000,-500.0,0.00015486,2]
[422918343,1779623447000,-9213.19897784,0.00015687,2]
[422918342,1779623447000,-33033.5024138,0.00015687,2]
[422918360,1779624130000,-5000.0,0.00013625,2]
[422918361,1779624147000,-4657.64862613,0.00013526,2]
[422918362,1779624163000,-342.35137387,0.00013526,2]
[422918363,1779624180000,-166.66666668,0.00013663,2]
[422918364,1779624181000,136055.32752306,0.000178,120]
[422918365,1779624186000,195.95608639,0.000178,120]
[422918437,1779624632000,-500.0,0.00015286,2]
[422918427,1779624632000,-500.0,0.00015286,2]
[422918423,1779624632000,-500.0,0.00015286,2]
[422918417,1779624632000,-342.86576128,0.00015286,2]
[422918421,1779624632000,-500.0,0.00015286,2]
[422918416,1779624632000,-837.0,0.00015285,2]
[422918413,1779624632000,-300.0,0.00015285,2]
[422918410,1779624632000,-1000.0,0.00014366,2]
[422918425,1779624632000,-607.66124916,0.00015286,2]
[422918419,1779624632000,-500.0,0.00015286,2]
[422918406,1779624632000,-222.81492991,0.00013941,2]
[422918408,1779624632000,-151.00977511,0.00014011,2]
[422918404,1779624632000,-5000.0,0.00013732,2]
[422918412,1779624632000,-222.4477806,0.00015285,2]
[422918438,1779624632000,-500.0,0.00015286,2]
[422918445,1779624632000,-550.0,0.00015286,2]
[422918441,1779624632000,-500.0,0.00015286,2]
[422918446,1779624632000,-0.70734483,0.00015286,2]
[422918448,1779624632000,-139.42594237,0.00015286,2]
[422918440,1779624632000,-500.0,0.00015286,2]
[422918444,1779624632000,-500.0,0.00015286,2]
[422918447,1779624632000,-359.8667128,0.00015286,2]
[422918449,1779624632000,-495.74181664,0.00015287,2]
[422918450,1779624632000,-285.94924944,0.00015287,2]
[422918429,1779624632000,-500.0,0.00015286,2]
[422918435,1779624632000,-246.40061824,0.00015286,2]
[422918433,1779624632000,-500.0,0.00015286,2]
[422918434,1779624632000,-253.59938176,0.00015286,2]
[422918431,1779624632000,-500.0,0.00015286,2]
[422918439,1779624632000,-500.0,0.00015286,2]
[422918442,1779624632000,-500.0,0.00015286,2]
[422918514,1779624638000,-23879.28191356,0.00015287,2]
[422918507,1779624638000,-1342.31027566,0.00015287,2]
[422918499,1779624638000,-831.71238038,0.00015287,2]
[422918700,1779624641000,-4052.64258996,0.00015287,2]
[422918706,1779624644000,-741.8086363,0.00015287,2]
[422918707,1779624644000,-5199.9349,0.00015287,2]
[422918705,1779624644000,-5000.0,0.00015134,2]
[422918726,1779624647000,-500.0,0.00015286,2]
[422918730,1779624647000,-337.2,0.00015287,2]
[422918728,1779624647000,-7555.21288691,0.00015287,2]
[422918734,1779624647000,-64384.96069837,0.00015287,2]
[422918735,1779624647000,-448.3963019,0.00015287,2]
[422918736,1779624647000,-540.92371165,0.00015287,2]
[422918727,1779624647000,-5125.44987224,0.00015287,2]
[422918744,1779625483000,-583.10275,0.00010986,2]
[422918766,1779625556000,-166.66666668,0.00013671,2]
[422918763,1779625556000,-268.16730925,0.00013144,2]
[422918764,1779625556000,-152.0,0.00013391,7]
[422918762,1779625556000,-2670.0738311,0.00012637,2]
[422918761,1779625556000,-420.0,0.00012332,2]
[422918760,1779625556000,-159.31941959,0.00011227,7]
[422918758,1779625556000,-187.84848662,0.00011227,7]
[422918757,1779625556000,-154.32400244,0.00011227,7]
[422918759,1779625556000,-168.66810257,0.00011227,7]
[422918755,1779625556000,-157.38798473,0.00011227,7]
[422918752,1779625556000,-164.07422677,0.00011227,7]
[422918754,1779625556000,-174.2371403,0.00011227,7]
[422918753,1779625556000,-166.08903375,0.00011227,7]
[422918750,1779625556000,-1200.0,0.00011225,2]
[422918751,1779625556000,-300.0,0.00011225,2]
[422918749,1779625556000,-300.0,0.00011225,2]
[422918746,1779625556000,-227.26043156,0.00011144,2]
[422918745,1779625556000,-4416.89725,0.00010986,2]
[422918748,1779625556000,-300.0,0.00011225,2]
[422918747,1779625556000,-300.0,0.00011225,2]
[422918765,1779625556000,-208.0,0.00013549,2]
[422918756,1779625556000,-156.00973972,0.00011227,7]
[422918768,1779625556000,-162.88483039,0.00013827,7]
[422918781,1779625556000,-500.0,0.00015185,2]
[422918767,1779625556000,-210.40133019,0.00013771,2]
[422918769,1779625556000,-1000.0,0.00014258,2]
[422918790,1779625556000,-153.62844363,0.000156,22]
[422918789,1779625556000,-150.87943927,0.000156,22]
[422918791,1779625556000,-150.72643466,0.000156,18]
[422918788,1779625556000,-384.56453117,0.000156,2]
[422918786,1779625556000,-171.89,0.00015501,2]
[422918782,1779625556000,-499.0,0.00015185,2]
[422918785,1779625556000,-161.73758927,0.00015494,2]
[422918792,1779625556000,-150.72643466,0.000156,18]
[422918783,1779625556000,-500.0,0.00015185,2]
[422918784,1779625556000,-500.0,0.00015459,2]
[422918787,1779625556000,-177.95822448,0.00015593,2]
[422918780,1779625556000,-500.0,0.00015185,2]
[422918779,1779625556000,-350.0,0.00015184,2]
[422918770,1779625556000,-300.0,0.00014334,2]
[422918772,1779625556000,-193.319201,0.00015068,2]
[422918771,1779625556000,-151.77264937,0.00014867,2]
[422918774,1779625556000,-309.07418693,0.00015144,2]
[422918775,1779625556000,-500.0,0.00015184,2]
[422918777,1779625556000,-612.52125603,0.00015184,2]
[422918776,1779625556000,-500.0,0.00015184,2]
[422918778,1779625556000,-251.8978968,0.00015184,2]
[422918773,1779625556000,-409.13957516,0.00015086,2]
[422918808,1779625557000,-153.012687,0.00015646,2]
[422918806,1779625557000,-153.012687,0.00015646,2]
[422918809,1779625557000,-153.012687,0.00015646,2]
[422918811,1779625557000,-500.0,0.00015654,2]
[422918810,1779625557000,-153.012687,0.00015646,2]
[422918805,1779625557000,-153.012687,0.00015646,2]
[422918803,1779625557000,-153.012687,0.00015646,2]
[422918802,1779625557000,-153.012687,0.00015646,2]
[422918798,1779625557000,-153.012687,0.00015646,2]
[422918799,1779625557000,-153.012687,0.00015646,2]
[422918800,1779625557000,-153.012687,0.00015646,2]
[422918801,1779625557000,-153.012687,0.00015646,2]
[422918797,1779625557000,-153.012687,0.00015646,2]
[422918794,1779625557000,-153.012687,0.00015646,2]
[422918796,1779625557000,-153.012687,0.00015646,2]
[422918793,1779625557000,-177.95822444,0.00015632,2]
[422918807,1779625557000,-153.012687,0.00015646,2]
[422918804,1779625557000,-153.012687,0.00015646,2]
[422918814,1779625557000,-500.0,0.00015654,2]
[422918795,1779625557000,-153.012687,0.00015646,2]
[422918816,1779625557000,-500.0,0.00015654,2]
[422918815,1779625557000,-500.0,0.00015654,2]
[422918831,1779625557000,-70290.69696205,0.00015687,2]
[422918832,1779625557000,-176500.185786,0.00015687,2]
[422918829,1779625557000,-281.025,0.00015655,2]
[422918830,1779625557000,-177.95822444,0.00015671,2]
[422918826,1779625557000,-1413.0,0.00015655,2]
[422918828,1779625557000,-2203.0,0.00015655,2]
[422918823,1779625557000,-500.0,0.00015654,2]
[422918825,1779625557000,-558.62364098,0.00015654,2]
[422918827,1779625557000,-647.0,0.00015655,2]
[422918821,1779625557000,-500.0,0.00015654,2]
[422918822,1779625557000,-500.0,0.00015654,2]
[422918817,1779625557000,-500.0,0.00015654,2]
[422918819,1779625557000,-500.0,0.00015654,2]
[422918820,1779625557000,-500.0,0.00015654,2]
[422918818,1779625557000,-500.0,0.00015654,2]
[422918813,1779625557000,-500.0,0.00015654,2]
[422918812,1779625557000,-500.0,0.00015654,2]
[422918824,1779625557000,-500.0,0.00015654,2]
[422918837,1779625625000,-500.0,0.00015085,2]
[422918834,1779625625000,-152.0,0.00013397,7]
[422918833,1779625625000,-5000.0,0.00012209,2]
[422918835,1779625625000,-500.0,0.00015085,2]
[422918836,1779625625000,-500.0,0.00015085,2]
[422918838,1779625625000,-500.0,0.00015085,2]
[422918840,1779625625000,-500.0,0.00015085,2]
[422918839,1779625625000,-500.0,0.00015085,2]
[422918845,1779625625000,-411.15837765,0.00015085,2]
[422918844,1779625625000,-500.0,0.00015085,2]
[422918846,1779625625000,-138953.68764135,0.00015086,2]
[422918843,1779625625000,-500.0,0.00015085,2]
[422918841,1779625625000,-500.0,0.00015085,2]
[422918842,1779625625000,-500.0,0.00015085,2]
[422918847,1779625628000,-2046.06151456,0.00015086,2]
[422918852,1779625645000,-307.65162494,0.000156,2]
[422918850,1779625645000,-85788.90796718,0.00015086,2]
[422918853,1779625645000,-22035.06537943,0.00015687,2]
[422918851,1779625645000,-37452.12399545,0.00015086,2]
[422918849,1779625645000,-5000.0,0.00014935,2]
[422918897,1779625831000,-161.73758927,0.00015528,2]
[422918913,1779625831000,-500.0,0.00015686,2]
[422918911,1779625831000,-500.0,0.00015686,2]
[422918903,1779625831000,-637.81086436,0.00015686,2]
[422918901,1779625831000,-500.0,0.00015686,2]
[422918893,1779625831000,-1000.0,0.0001469,2]
[422918899,1779625831000,-5000.0,0.0001553,2]
[422918909,1779625831000,-500.0,0.00015686,2]
[422918907,1779625831000,-500.0,0.00015686,2]
[422918895,1779625831000,-211.17039301,0.00015358,2]
[422918915,1779625831000,-500.0,0.00015686,2]
[422918905,1779625831000,-500.0,0.00015686,2]
[422918917,1779625831000,-71563.78047667,0.00015687,2]
[422918948,1779625831000,-307.65162494,0.000158,2]
[422918920,1779625831000,-600.0,0.00015693,2]
[422918930,1779625831000,-150.362,0.00015714,2]
[422918944,1779625831000,-518.64488432,0.00015738,2]
[422918940,1779625831000,-500.0,0.00015725,2]
[422918928,1779625831000,-150.132,0.00015714,2]
[422918942,1779625831000,-500.0,0.00015733,2]
[422918925,1779625831000,-518.64488432,0.00015712,2]
[422918946,1779625831000,-355.91644888,0.0001579,2]
[422918923,1779625831000,-150.07761165,0.000157,23]
[422918938,1779625831000,-152.461,0.00015714,2]
[422918934,1779625831000,-150.93,0.00015714,2]
[422918936,1779625831000,-250.0,0.00015714,2]
[422918932,1779625831000,-214.201,0.00015714,2]
[422918922,1779625831000,-150.01880349,0.000157,23]
[422918950,1779625832000,-29580.11284909,0.00015804,7]
[422919041,1779625838000,-557361.09692761,0.00015804,7]
[422919040,1779625838000,-14362.7066811,0.00015804,7]
[422919038,1779625838000,-16474.2365636,0.00015804,7]
[422919035,1779625838000,-1890.48215824,0.00015804,7]
[422919031,1779625838000,-5000.0,0.00015731,2]
[422919037,1779625838000,-34707.53860421,0.00015804,7]
[422919033,1779625838000,-304021.01513928,0.00015804,7]
[422919029,1779625838000,-500.0,0.00015686,2]
[422919042,1779625838000,-631.3309358,0.0001589,2]
[422919036,1779625838000,-939.79907109,0.00015804,7]
[422919049,1779625838000,-3833.0,0.00016,2]
[422919039,1779625838000,-62616.26220578,0.00015804,7]
[422919053,1779625838000,-82810.06177479,0.00016,7]
[422919045,1779625838000,-150.66,0.000159,2]
[422919055,1779625838000,-150.66,0.00016,2]
[422919056,1779625838000,-207454.5334105,0.00016,10]
[422919048,1779625838000,-214.798776,0.00015964,2]
[422919051,1779625838000,-258.0,0.00016,2]
[422919050,1779625838000,-218.73058132,0.00016,2]
[422919054,1779625838000,-3500.0,0.00016,2]
[422919043,1779625838000,-151.54,0.000159,2]
[422919047,1779625838000,-500.0,0.0001596,2]
[422919046,1779625838000,-307.65162494,0.000159,2]
[422919044,1779625838000,-150.66,0.000159,2]
[422919052,1779625838000,-250.0,0.00016,2]
[422919065,1779625840000,-16612.982891,0.00016,10]
[422919064,1779625840000,-359.50100004,0.00016,10]
[422919062,1779625840000,-452.28667416,0.00016,10]
[422919061,1779625840000,-1562.73952827,0.00016,10]
[422919077,1779625843000,-427.77401337,0.00016,10]
[422919076,1779625843000,-8958.98300026,0.00016,10]
[422919078,1779625843000,-19611.131754,0.00016,10]
[422919079,1779625843000,-1826.03086402,0.00016,10]
[422919080,1779625843000,-871.80861895,0.00016,10]
[422919081,1779625843000,-5064.92389278,0.00016,10]
[422919103,1779625846000,-436.76689,0.00016,2]
[422919098,1779625846000,-2321.38182909,0.00016,2]
[422919095,1779625846000,-151.51,0.00016,2]
[422919097,1779625846000,-160.0,0.00016,2]
[422919096,1779625846000,-150.98,0.00016,2]
[422919093,1779625846000,-500.0,0.00016,10]
[422919105,1779625846000,-1254.042811,0.00016,2]
[422919104,1779625846000,-436.76689,0.00016,2]
[422919101,1779625846000,-436.76689,0.00016,2]
[422919091,1779625846000,-8222.31491507,0.00016,10]
[422919092,1779625846000,-11322.19025052,0.00016,10]
[422919090,1779625846000,-5835.77319198,0.00016,10]
[422919089,1779625846000,-1298.55723155,0.00016,10]
[422919088,1779625846000,-466.0,0.00016,10]
[422919087,1779625846000,-151.0,0.00015686,2]
[422919094,1779625846000,-1000.0,0.00016,2]
[422919102,1779625846000,-436.76689,0.00016,2]
[422919109,1779625846000,-162.5418,0.00016023,2]